Cogmind - Beta 11 X9 *** ADVENTURER MODE // 2022.01.23 @ 19:23:27 Player: Sardaukar Result: Destroyed by G-73 Enforcer with Heavy Laser Performance ------------- Evolutions (7) 3500 Regions Visited (15) 3000 Robots Destroyed (117) 585 Value Destroyed (4154) 4154 Prototype IDs (17) 340 Alien Tech Used (1) 200 Bonus (1077) 1077 TOTAL SCORE: 12856 Bonus ------- Triggered Max Security 1000 Follower Combat Kills 190 Aligned with FarCom 300 Met Data Miner 300 Friendly Fire -713 Cogmind --------- Core Integrity 0/1300 Matter 273/300 Energy 100/100 System Corruption 24% Temperature Cool (9) Movement Core (150) Ox2 Location -3/Quarantine Parts ------- > --- POWER (2) -------- (None) > --- PROPULSION (5) --- (None) > --- UTILITY (10) ----- (None) > --- WEAPON (4) ------- Enhanced Force Lance > --- INVENTORY (5) ---- Light Antimatter Reactor Advanced Signal Interpreter Advanced Force Field Enhanced Force Lance Peak State ------------ > --- POWER ------------ Light Antimatter Reactor Light Particle Reactor > --- PROPULSION ------- Medium Treads Improved Heavy Treads Armored Heavy Treads > --- UTILITY ---------- High-capacity Storage Unit Machine Analyzer Visual Processing Unit Advanced Target Analyzer Improved Kinecellerator Heavy Armor Plating Heavy Armor Plating Hardened Medium Armor Plating > --- WEAPON ----------- Heavy Machine Gun Enhanced Force Lance Enhanced Force Lance Enhanced Force Lance > --- INVENTORY -------- Light Antimatter Reactor Light Antimatter Reactor Medium Treads Advanced Cooling System Terrain Scan Processor Advanced Salvage Targeting Computer Hardened Medium Armor Plating Hardened Medium Armor Plating Field Recycling Unit HERF Cannon Advanced Remote Datajack [Rating: 117] Favorites ----------- Power Improved Ion Engine Engine Improved Ion Engine Power Core Light Nuclear Core Reactor Light Antimatter Reactor Propulsion Improved Aluminum Leg Treads Improved Heavy Treads Leg Improved Aluminum Leg Wheel Wheel Utility Visual Processing Unit Device Improved Terrain Scanner Storage Large Storage Unit Processor Visual Processing Unit Hackware Hacking Suite Protection Improved Medium Armor Plating Artifact Phase Armor Weapon Autogun Energy Cannon HERF Cannon Ballistic Gun Autogun Ballistic Cannon Magnetic Acceleration Cannon Launcher Rocket Array Special Weapon Mining Laser Piercing Weapon Enhanced Force Lance Build | -11 -10 -10 -10 -9 -8 -7 -7 -7 -7 -6 -6 -5 -4 -3 -3 ------- Run | Scr Mat Min Exi Min Mat Fac Low Low Dat Pro Fac Fac Fac Res Qua Slots Evolved 14 | . . . . . 4 2 . . . . 2 2 2 2 . Power 1 | . . . . . . . . . . . . . 1 . . Propulsion 3 | . . . . . 2 1 . . . . . . . . . Utility 8 | . . . . . 2 1 . . . . 2 2 1 . . Weapon 2 | . . . . . . . . . . . . . . 2 . Parts Attached 166 | 6 9 . . . 16 12 7 5 6 8 27 13 10 44 3 Power 13 | 1 1 . . . 1 1 . . 1 . . . 2 6 . Engine 5 | 1 1 . . . . 1 . . 1 . . . 1 . . Core 2 | . . . . . 1 . . . . . . . 1 . . Reactor 6 | . . . . . . . . . . . . . . 6 . Propulsion 33 | 2 4 . . . 2 1 1 2 1 3 6 1 2 8 . Treads 7 | . . . . . . . . . 1 . 1 . 1 4 . Leg 19 | . 4 . . . 2 1 1 2 . 1 5 1 1 1 . Wheel 7 | 2 . . . . . . . . . 2 . . . 3 . Hover . | . . . . . . . . . . . . . . . . Flight . | . . . . . . . . . . . . . . . . Utility 62 | 1 2 . . . 10 5 4 . 1 1 13 7 3 13 2 Device 34 | . . . . . 7 2 3 . . 1 8 6 1 5 1 Storage 5 | 1 1 . . . 2 . . . . . . . . 1 . Processor 8 | . 1 . . . . 2 . . . . 3 . . 2 . Hackware 2 | . . . . . 1 1 . . . . . . . . . Protection 12 | . . . . . . . 1 . 1 . 2 1 2 5 . Artifact 1 | . . . . . . . . . . . . . . . 1 Weapon 58 | 2 2 . . . 3 5 2 3 3 4 8 5 3 17 1 Energy Gun . | . . . . . . . . . . . . . . . . Energy Cannon 10 | . . . . . . . . . . . . 1 . 9 . Ballistic Gun 13 | 2 2 . . . 1 3 . 2 . 2 . . . 1 . Ballistic Cannon 16 | . . . . . . . 2 . 1 1 6 3 3 . . Launcher 8 | . . . . . . 1 . 1 2 1 2 1 . . . Special Weapon 4 | . . . . . 2 1 . . . . . . . 1 . Impact Weapon . | . . . . . . . . . . . . . . . . Slashing Weapon . | . . . . . . . . . . . . . . . . Piercing Weapon 7 | . . . . . . . . . . . . . . 6 1 Special Melee Weapon . | . . . . . . . . . . . . . . . . Unidentified Prototypes 7 | . . . . . 1 1 . . 1 . 2 . . 1 1 Parts Lost 56 | . . . . . . 3 . 2 5 2 1 . 20 22 1 Power 7 | . . . . . . 1 . . 1 . . . 2 3 . Propulsion 18 | . . . . . . 1 . 2 2 2 1 . 5 5 . Utility 21 | . . . . . . 1 . . 1 . . . 8 10 1 Weapon 10 | . . . . . . . . . 1 . . . 5 4 . Highest Loss Streak 18 | . . . . . . 2 . 1 5 2 1 . 18 11 1 Average Slot Usage (%) 90 | . 98 100 100 100 99 96 97 98 93 93 99 99 75 64 2 Engine 6 | . 14 14 14 14 7 1 7 7 5 7 6 5 7 . . Reactor 1 | . . . . . . . . . . . . . . 7 . Treads 1 | . . . . . . . . . 1 . 2 . . 9 . Leg 24 | . 14 28 28 28 35 35 35 36 32 23 30 29 18 . . Wheel 1 | . 13 . . . . . . . . 8 . . . 2 . Device 7 | . . . . . 8 1 3 7 7 7 17 14 10 5 1 Storage 7 | . 14 14 14 14 9 7 7 7 7 7 6 5 4 3 . Processor 14 | . 12 14 14 14 9 15 15 15 15 15 20 23 19 9 . Hackware 2 | . . . . . 8 12 5 . . . . . . . . Protection 3 | . . . . . . . 5 7 6 7 1 7 3 7 . Ballistic Gun 9 | . 28 28 28 28 17 11 2 2 7 7 . . . 2 . Ballistic Cannon 3 | . . . . . . . 12 11 3 3 11 7 4 . . Piercing Weapon 1 | . . . . . . . . . . . . . . 8 1 Naked Turns 108 | . . . . . . . . . . . . . . 59 49 Heaviest Build 140 | 12 23 23 23 23 32 35 48 48 53 46 54 64 67 140 48 Greatest Support 163 | 20 26 26 26 26 52 65 69 73 73 67 90 90 90 163 3 Greatest Overweight (x) 16 | 1 1 . . . . . . . 1 4 . . 16 3 15 Average Overweight (x) . | . . . . . . . . . . 1 . . . . . Largest Inventory Capacity 20 | 8 10 10 10 10 15 15 15 15 15 15 15 15 15 20 5 Average Capacity 13 | 7 9 10 10 10 10 15 15 15 15 15 15 15 13 18 5 Most Carried 15 | . 10 10 10 10 10 12 15 14 14 15 15 15 14 12 5 Average Carried 10 | . 6 10 9 10 8 7 13 13 12 12 13 14 11 5 4 Final Capacity 15 | 8 10 10 10 10 15 15 15 15 15 15 15 15 5 5 5 Final Carried 15 | . 10 10 10 10 10 12 14 13 10 15 15 15 3 5 4 Class Distribution -------------------- 39% | Mutant 17% | Hacker-Skirmisher 15% | Scavenger-Mutant 8% | Hacker-Mutant 5% | Scavenger-Assassin 3% | Scavenger-Skirmisher 3% | Derelict-Skirmisher 3% | Skirmisher Dominant Class ---------------- Mutant | -10/Materials Mutant | -10/Mines Mutant | -10/Exiles Mutant | -9/Mines Hacker-Skirmisher | -8/Materials Hacker-Skirmisher | -7/Factory Hacker-Mutant | -7/Lower Caves Mutant | -7/Lower Caves Mutant | -7/Data Miner Scavenger-Mutant | -6/Proximity Caves Derelict-Skirmisher | -6/Factory Mutant | -5/Factory Scavenger-Mutant | -4/Factory Scavenger-Assassin | -3/Research Mutant | -3/Quarantine Resources | -11 -10 -10 -10 -9 -8 -7 -7 -7 -7 -6 -6 -5 -4 -3 -3 ----------- Run | Scr Mat Min Exi Min Mat Fac Low Low Dat Pro Fac Fac Fac Res Qua Matter Collected 3319 | 226 313 135 . . 306 214 276 204 4 194 540 155 105 647 . Remotely 29 | . . . . . . . . . . . . . . 29 . Salvage Created 4938 | . 444 209 . . 332 211 195 257 189 110 612 175 51 2153 . Parts 263 | . 25 12 . . 27 12 11 5 3 8 32 15 6 107 . Haulers Intercepted 4 | . 1 . . . 2 1 . . . . . . . . . Recyclers Shooed 6 | . . 2 . . 1 . . . . . 1 1 . 1 . Parts Field Recycled . | . . . . . . . . . . . . . . . . Retrieved Matter . | . . . . . . . . . . . . . . . . Parts Self-Destructed 17 | . . . . . . . 9 4 . 4 . . . . . Prevented 1 | . . . . . . . 1 . . . . . . . . Kills | -11 -10 -10 -10 -9 -8 -7 -7 -7 -7 -6 -6 -5 -4 -3 -3 ------- Run | Scr Mat Min Exi Min Mat Fac Low Low Dat Pro Fac Fac Fac Res Qua Combat Hostiles Destroyed 78 | . 10 4 . . 3 3 6 5 4 4 4 10 4 21 . Melee 16 | . . . . . . . . . . . . . . 16 . Guns 21 | . 10 4 . . 2 2 2 . . 1 . . . . . Cannons 19 | . . . . . 1 . 4 3 . . 3 3 2 3 . AOE 20 | . . . . . . 1 . 2 4 3 1 7 2 . . Classes Destroyed 16 | . 4 2 . . 3 1 2 1 1 . 2 . . . . Worker 10 | . . . . . 3 . . . . . 4 1 . 2 . Builder 3 | . . . . . . . . . . . 2 . . 1 . Hauler 4 | . 1 . . . 2 1 . . . . . . . . . Recycler 8 | . . 2 . . . . . . . . 2 . . 4 . Mechanic 1 | . . . . . . . . . . . 1 . . . . Operator 3 | . . . . . 1 . . . . . 1 . 1 . . Watcher 8 | . 1 . . . 1 2 . . . . 2 . . 2 . Swarmer 31 | . 3 3 . . . . 2 1 . 4 2 10 3 3 . Grunt 22 | . 7 . . . 2 2 2 2 . . 1 . . 6 . Duelist 1 | . . . . . . . 1 . . . . . . . . Sentry 5 | . . . . . . . 1 1 . . . . . 3 . Hunter 2 | . . . . . 1 . . . . . 1 . . . . Programmer 12 | . . . . . . 1 . . . . 1 . 1 9 . Enhanced Grunt 4 | . . . . . . . . . 4 . . . . . . Decomposer 2 | . . . . . . . . . . 2 . . . . . Assembled 1 | . . 1 . . . . . . . . . . . . . Savage 2 | . . . . . . . . . 2 . . . . . . Mutant 1 | . . . . . . . . 1 . . . . . . . Best Kill Streak 13 | . 3 4 . . 4 2 3 2 4 4 4 10 4 13 . Combat Bots Only 12 | . 3 3 . . 1 1 3 2 4 4 2 9 3 12 . Max Kills in Single Turn 5 | . 1 2 . . 2 1 1 2 3 3 3 5 1 1 . Gunslinging 1 | . . 1 . . . . . . . . . . . . . Exploded 5 | . . . . . . 1 . 2 2 3 1 5 1 . . Melee 1 | . . . . . . . . . . . . . . 1 . Uniques/NPCs Destroyed . | . . . . . . . . . . . . . . . . Combat | -11 -10 -10 -10 -9 -8 -7 -7 -7 -7 -6 -6 -5 -4 -3 -3 -------- Run | Scr Mat Min Exi Min Mat Fac Low Low Dat Pro Fac Fac Fac Res Qua Damage Taken 11799 | . 334 29 . . 259 337 166 153 551 132 66 748 3064 5365 595 Core 2532 | . 61 16 . . 44 24 40 42 75 22 7 39 854 797 511 Absorbed by Shields 279 | . . . . . . . . . . . . . . 279 . Redirected to Core 27 | . . . . . . . . . . . . . . . 27 Core Remaining (%) 78 | 100 . . . 69 92 . . . . 71 99 96 25 . . Volleys Fired 230 | . 51 9 . . 30 21 9 13 6 7 34 18 12 20 . Largest 2 | . 2 2 . . 2 2 2 2 2 2 2 2 2 1 . Hottest 123 | . 46 46 . . 123 100 106 106 98 68 101 110 110 88 . Shots Fired 395 | . 102 18 . . 53 40 18 24 12 11 60 20 16 21 . Gun 218 | . 102 18 . . 41 35 8 4 . 10 . . . . . Cannon 145 | . . . . . . . 10 18 6 . 59 18 13 21 . Launcher 18 | . . . . . . 3 . 2 6 1 1 2 3 . . Special 14 | . . . . . 12 2 . . . . . . . . . Kinetic 338 | . 102 18 . . 41 35 18 22 6 10 59 14 13 . . Thermal 14 | . . . . . 12 2 . . . . . . . . . Explosive 18 | . . . . . . 3 . 2 6 1 1 2 3 . . Electromagnetic 25 | . . . . . . . . . . . . 4 . 21 . Robot Hit Streak 23 | . 23 6 . . 17 7 12 19 15 8 15 9 7 9 . Robot Miss Streak 4 | . 2 2 . . 2 4 1 2 1 1 4 2 2 2 . Penetration Max . | . . . . . . . . . . . . . . . . Secondary Targets 2 | . 1 1 . . . . . . . . . . . . . Max Gunslinging Chain 1 | . 1 1 . . . . . . . . . . . . . Shots Hit Robots 317 | . 66 11 . . 36 28 14 18 7 7 32 11 13 74 . Core Hits 257 | . 23 6 . . 15 18 7 14 41 11 34 19 18 50 1 Critical Kills 1 | . . 1 . . . . . . . . . . . . . Critical Parts Destroyed 1 | . . . . . . 1 . . . . . . . . . Critical Strikes 15 | . . 1 . . . 1 1 . . . 2 1 . 9 . Destroy 2 | . . 1 . . . 1 . . . . . . . . . Blast 4 | . . . . . . . 1 . . . 2 1 . . . Puncture 9 | . . . . . . . . . . . . . . 9 . Melee Attacks 75 | . . . . . . . . . . . . . . 74 1 Impact . | . . . . . . . . . . . . . . . . Slashing . | . . . . . . . . . . . . . . . . Piercing 75 | . . . . . . . . . . . . . . 74 1 Sneak Attacks 3 | . . . . . . . . . . . . . . 3 . Combat Hostiles . | . . . . . . . . . . . . . . . . Follow-up Attacks 11 | . . . . . . . . . . . . . . 11 . Damage Inflicted 11467 | . 819 174 . . 543 611 364 931 1475 298 1131 864 880 3371 6 Guns 2091 | . 813 166 . . 471 381 101 49 . 110 . . . . . Cannons 2846 | . . . . . . . 263 425 67 . 929 211 360 591 . Explosions 3481 | . . . . . . 230 . 457 1408 188 202 559 437 . . Melee 2770 | . . . . . . . . . . . . . . 2770 . Ramming 207 | . 6 8 . . . . . . . . . 94 83 10 6 Kinetic 4285 | . 813 166 . . 471 381 364 474 67 110 929 150 360 . . Thermal 72 | . . . . . 72 . . . . . . . . . . Explosive 3401 | . . . . . . 230 . 457 1408 188 122 559 437 . . Electromagnetic 732 | . . . . . . . . . . . 80 61 . 591 . Impact . | . . . . . . . . . . . . . . . . Slashing . | . . . . . . . . . . . . . . . . Piercing 2770 | . . . . . . . . . . . . . . 2770 . Highest Corruption 24 | . . . . . . . . . . . . . 8 22 24 Average Corruption 14 | . . . . . . . . . . . . . 6 16 23 Corruption Purged . | . . . . . . . . . . . . . . . . Effects 35 | . . . . . . . . . . . . . 6 24 5 Message Errors 9 | . . . . . . . . . . . . . 3 6 . Matter Fused 4 | . . . . . . . . . . . . . . 3 1 Heat Flow Errors 6 | . . . . . . . . . . . . . . 3 3 Energy Discharges 3 | . . . . . . . . . . . . . . 3 . Data Loss (minor) 4 | . . . . . . . . . . . . . 2 2 . Data Loss (major) 3 | . . . . . . . . . . . . . 1 2 . Misfires 1 | . . . . . . . . . . . . . . 1 . Misdirections 5 | . . . . . . . . . . . . . . 4 1 Overload Shots . | . . . . . . . . . . . . . . . . Overflow Damage 301 | . . . . . . 2 . 7 . . 80 48 57 107 . Projectiles 180 | . . . . . . . . . . . 80 26 54 20 . Explosions 25 | . . . . . . 2 . 7 . . . 13 3 . . Melee 96 | . . . . . . . . . . . . 9 . 87 . Knockbacks 23 | . . . . . . . 3 1 . . 13 1 5 . . Impact . | . . . . . . . . . . . . . . . . Kinetic 22 | . . . . . . . 3 1 . . 12 1 5 . . Secondary 1 | . . . . . . . . . . . 1 . . . . Self-Inflicted Damage 288 | . 3 . . . . 16 . 41 73 23 22 89 16 3 2 Shots 13 | . . . . . . 1 . 2 3 1 1 4 1 . . Rammed 6 | . 1 . . . . . . . . . . . . 2 3 Targets Rammed 34 | . 1 1 . . . . . . . . . 11 13 5 3 Kicked 28 | . . 1 . . . . . . . . . 11 13 3 . Crushed . | . . . . . . . . . . . . . . . . Highest Temperature 212 | . 38 16 . . 67 15 126 102 18 . 212 86 2 183 196 Average Temperature 25 | . 14 6 . . 20 5 60 37 6 . 18 35 2 33 93 Received Heat Transfer 1368 | . 186 . . . 81 129 51 9 78 . . 117 135 573 9 Siege Activations . | . . . . . . . . . . . . . . . . Robots Corrupted 3 | . . . . . . . . . . . . . . 3 . Combat Hostiles 2 | . . . . . . . . . . . . . . 2 . Parts Fried 5 | . . . . . . . . . . . . . . 5 . Impact Corruptions 1 | . . . . . . . . . . . . 1 . . . Robots Melted . | . . . . . . . . . . . . . . . . Combat Hostiles . | . . . . . . . . . . . . . . . . Parts Melted 2 | . . . . . . . 2 . . . . . . . . Heat Transferred 150 | . . . . . 150 . . . . . . . . . . Parts Sabotaged . | . . . . . . . . . . . . . . . . Parts Stolen . | . . . . . . . . . . . . . . . . Parts Stripped . | . . . . . . . . . . . . . . . . Power Chain Reactions . | . . . . . . . . . . . . . . . . Missiles Intercepted . | . . . . . . . . . . . . . . . . Alert | -11 -10 -10 -10 -9 -8 -7 -7 -7 -7 -6 -6 -5 -4 -3 -3 ------- Run | Scr Mat Min Exi Min Mat Fac Low Low Dat Pro Fac Fac Fac Res Qua Peak Influence 1659 | . 186 128 . . 167 148 . . . . 234 330 198 250 1659 Initial 84 | . . 41 . . . 65 . . . . . . 84 13 60 Average 90 | . 81 64 . . 13 82 . . . . 117 78 57 82 1606 Maximum Alert Level 5 | . . . . . . . . . . . 1 1 . 1 5 Low Security (%) 96 | 100 100 100 . 100 100 100 . . . . 90 95 100 95 . Level 1 2 | . . . . . . . . . . . 9 4 . 4 . Level 2 . | . . . . . . . . . . . . . . . . Level 3 . | . . . . . . . . . . . . . . . . Level 4 . | . . . . . . . . . . . . . . . . Level 5 . | . . . . . . . . . . . . . . . . High Security . | . . . . . . . . . . . . . . . . Max Security 1 | . . . . . . . . . . . . . . . 99 Squads Dispatched 26 | . 1 . . . 2 3 . . . . 3 2 2 7 6 Investigation 5 | . 1 . . . 1 1 . . . . 1 . 1 . . Extermination 6 | . . . . . . 1 . . . . 1 . 1 3 . Reinforcement 8 | . . . . . 1 1 . . . . 1 2 . 3 . Assault 6 | . . . . . . . . . . . . . . . 6 Garrison 1 | . . . . . . . . . . . . . . 1 . Intercept . | . . . . . . . . . . . . . . . . Construction Impeded 1 | . . . . . . . . . . . . . . 1 . Haulers Reinforced 2 | . . . . . . 1 . . . . . 1 . . . Active Scanning Responses . | . . . . . . . . . . . . . . . . Cargo Convoy Interrupts . | . . . . . . . . . . . . . . . . Stealth | -11 -10 -10 -10 -9 -8 -7 -7 -7 -7 -6 -6 -5 -4 -3 -3 --------- Run | Scr Mat Min Exi Min Mat Fac Low Low Dat Pro Fac Fac Fac Res Qua Distress Signals 9 | . 2 . . . 3 . . . . . 2 . 1 1 . Communications Jammed 12 | . . . . . 5 . . . . . 5 2 . . . Distress Signals 12 | . . . . . 5 . . . . . 5 2 . . . Times Spotted 160 | . 18 4 . . 11 12 9 7 4 4 14 13 11 37 16 Peak Tracking Total 13 | . 5 3 . . 4 2 3 3 4 4 4 5 5 8 13 Tactical Retreats 15 | . 2 . . . . 1 2 . . . 1 1 3 3 2 Traps | -11 -10 -10 -10 -9 -8 -7 -7 -7 -7 -6 -6 -5 -4 -3 -3 ------- Run | Scr Mat Min Exi Min Mat Fac Low Low Dat Pro Fac Fac Fac Res Qua Traps Triggered 4 | . 1 . . . . . . . . . 1 . . 1 1 Indirectly 1 | . . . . . . . . . . . 1 . . . . Trap Hack Attempts . | . . . . . . . . . . . . . . . . Triggered . | . . . . . . . . . . . . . . . . Disarmed . | . . . . . . . . . . . . . . . . Reprogrammed . | . . . . . . . . . . . . . . . . Reused . | . . . . . . . . . . . . . . . . Traps Extracted . | . . . . . . . . . . . . . . . . Installed . | . . . . . . . . . . . . . . . . Triggered 2 | . . . . . . . 2 . . . . . . . . Machines | -11 -10 -10 -10 -9 -8 -7 -7 -7 -7 -6 -6 -5 -4 -3 -3 ---------- Run | Scr Mat Min Exi Min Mat Fac Low Low Dat Pro Fac Fac Fac Res Qua Machines Disabled 10 | . . . . . . . . 1 1 . 7 . . . 1 Max in Single Turn 4 | . . . . . . . . 1 1 . 4 . . . 1 Garrison Access 4 | . . . . . . 1 . . . . . 2 . 1 . Machines Sabotaged . | . . . . . . . . . . . . . . . . Garrisons Compromised . | . . . . . . . . . . . . . . . . Overloaded Fab Kills . | . . . . . . . . . . . . . . . . Hacking | -11 -10 -10 -10 -9 -8 -7 -7 -7 -7 -6 -6 -5 -4 -3 -3 --------- Run | Scr Mat Min Exi Min Mat Fac Low Low Dat Pro Fac Fac Fac Res Qua Machines Accessed 37 | . 6 2 1 . 2 6 1 . 4 . 5 4 4 2 . Terminals 20 | . 5 1 . . 1 4 . . . . 5 . 4 . . Fabricators 1 | . . . . . . . . . . . . . . 1 . Repair Stations 2 | . . . . . . . . . . . . 2 . . . Recycling Units 1 | . 1 . . . . . . . . . . . . . . Scanalyzers 2 | . . . . . 1 1 . . . . . . . . . Garrison Access 4 | . . . . . . 1 . . . . . 2 . 1 . Total Hacks 119 | . 15 5 1 . 7 23 1 . 32 . 9 8 14 4 . Successful 85 | . 7 2 1 . 5 16 1 . 32 . 6 5 9 1 . Failed 34 | . 8 3 . . 2 7 . . . . 3 3 5 3 . Catastrophic 4 | . 1 1 . . . 1 . . . . . . 1 . . Database Lockouts . | . . . . . . . . . . . . . . . . Manual 39 | . 11 4 1 . 3 7 . . . . 6 . 7 . . Terminals 55 | . 14 4 . . 3 11 . . . . 9 . 14 . . Fabricators 2 | . . . . . . . . . . . . . . 2 . Repair Stations 5 | . . . . . . . . . . . . 5 . . . Recycling Units 1 | . 1 . . . . . . . . . . . . . . Scanalyzers 15 | . . . . . 4 11 . . . . . . . . . Garrison Access 6 | . . . . . . 1 . . . . . 3 . 2 . Terminal Hacks 56 | . 6 2 1 . 1 4 1 . 32 . 2 . 7 . . Record 12 | . . . 1 . . . . . 11 . . . . . . Part Schematic 13 | . . . . . . . . . 12 . 1 . . . . Robot Schematic 6 | . . . . . . . . . 6 . . . . . . Robot Analysis 3 | . 3 . . . . . . . . . . . . . . Prototype ID Bank 3 | . . . . . . . . . 3 . . . . . . Open Door 2 | . . 1 . . . . 1 . . . . . . . . Open DSF 2 | . . . . . . . . . . . 1 . 1 . . Level Access Points 1 | . . . . . . . . . . . . . 1 . . Branch Access Points 4 | . 1 1 . . . 1 . . . . . . 1 . . Terminal Index 1 | . 1 . . . . . . . . . . . . . . Recycling Unit Index 1 | . . . . . . . . . . . . . 1 . . Alert Level 2 | . . . . . . 1 . . . . . . 1 . . Unreport Threat 1 | . 1 . . . . . . . . . . . . . . Dispatch Records 1 | . . . . . . . . . . . . . 1 . . Recall Investigation 1 | . . . . . 1 . . . . . . . . . . Hauler Manifests 1 | . . . . . . . . . . . . . 1 . . Zone Layout 2 | . . . . . . 2 . . . . . . . . . Fabricator Hacks . | . . . . . . . . . . . . . . . . Repair Station Hacks 3 | . . . . . . . . . . . . 3 . . . Scan Component 2 | . . . . . . . . . . . . 2 . . . Repair 1 | . . . . . . . . . . . . 1 . . . Recycling Unit Hacks 1 | . 1 . . . . . . . . . . . . . . Retrieve Components 1 | . 1 . . . . . . . . . . . . . . Scanalyzer 15 | . . . . . 4 11 . . . . . . . . . Insert Component 8 | . . . . . 2 6 . . . . . . . . . Analyze 7 | . . . . . 2 5 . . . . . . . . . Garrison Access Hacks 4 | . . . . . . 1 . . . . . 2 . 1 . Seal Access 4 | . . . . . . 1 . . . . . 2 . 1 . Unauthorized Hacks 6 | . . . . . . . . . . . 4 . 2 . . Terminals 6 | . . . . . . . . . . . 4 . 2 . . Assimilate 3 | . . . . . . . . . . . 2 . 1 . . Botnet 3 | . . . . . . . . . . . 2 . 1 . . Fabricators . | . . . . . . . . . . . . . . . . Repair Stations . | . . . . . . . . . . . . . . . . Recycling Units . | . . . . . . . . . . . . . . . . Scanalyzers . | . . . . . . . . . . . . . . . . Garrison Access . | . . . . . . . . . . . . . . . . Data Cores Recovered 1 | . . . . . 1 . . . . . . . . . . Used . | . . . . . . . . . . . . . . . . Hacking Detections 21 | . 5 1 . . 2 5 . . . . 4 . 2 2 . Full Trace Events 5 | . 1 . . . 1 1 . . . . 1 . 1 . . Feedback Events . | . . . . . . . . . . . . . . . . Feedback Blocked . | . . . . . . . . . . . . . . . . Robot Schematics Acquired 6 | . . . . . . . . . 6 . . . . . . Robots Built . | . . . . . . . . . . . . . . . . Authchips . | . . . . . . . . . . . . . . . . Time . | . . . . . . . . . . . . . . . . Total Robot Build Rating . | . . . . . . . . . . . . . . . . Part Schematics Acquired 20 | . . . . . 2 5 . . 12 . 1 . . . . Parts Built . | . . . . . . . . . . . . . . . . Authchips . | . . . . . . . . . . . . . . . . Time . | . . . . . . . . . . . . . . . . Total Part Build Rating . | . . . . . . . . . . . . . . . . Parts Repaired 1 | . . . . . . . . . . . . 1 . . . Time 50 | . . . . . . . . . . . . 50 . . . Parts Recycled . | . . . . . . . . . . . . . . . . Recycled Matter . | . . . . . . . . . . . . . . . . Retrieved Matter . | . . . . . . . . . . . . . . . . Retrieved Components 9 | . 9 . . . . . . . . . . . . . . Parts Scanalyzed 7 | . . . . . 2 5 . . . . . . . . . Part Schematics Acquired 7 | . . . . . 2 5 . . . . . . . . . Parts Damaged . | . . . . . . . . . . . . . . . . Bothacking | -11 -10 -10 -10 -9 -8 -7 -7 -7 -7 -6 -6 -5 -4 -3 -3 ------------ Run | Scr Mat Min Exi Min Mat Fac Low Low Dat Pro Fac Fac Fac Res Qua Used RIF Installer . | . . . . . . . . . . . . . . . . Robots Hacked . | . . . . . . . . . . . . . . . . Non-combat . | . . . . . . . . . . . . . . . . Combat . | . . . . . . . . . . . . . . . . Robot Hacks Applied . | . . . . . . . . . . . . . . . . Relay Couplers Released . | . . . . . . . . . . . . . . . . Fabnet Peak Effective % . | . . . . . . . . . . . . . . . . Robots Rewired 8 | . . . . . . . . 3 . . 4 1 . . . Allies Hacked . | . . . . . . . . . . . . . . . . Hacks Repelled . | . . . . . . . . . . . . . . . . Allies | -11 -10 -10 -10 -9 -8 -7 -7 -7 -7 -6 -6 -5 -4 -3 -3 -------- Run | Scr Mat Min Exi Min Mat Fac Low Low Dat Pro Fac Fac Fac Res Qua Total Allies 10 | . . . . . . . . 3 . . 5 1 1 . . Largest Group 5 | . . . . . . . . 3 3 . 5 1 1 . . Highest-Rated Group 153 | . . . . . . . . 60 60 . 153 29 10 . . Highest-Rated Ally 41 | . . . . . . . . 20 20 . 41 29 10 . . Total Orders . | . . . . . . . . . . . . . . . . Ally Attacks 21 | . . . . . . . . 6 . . 13 2 . . . Total Damage 590 | . . . . . . . . 145 . . 427 18 . . . Kills 7 | . . . . . . . . 2 . . 5 . . . . Allies Corrupted 1 | . . . . . . . . . . . 1 . . . . Allies Melted . | . . . . . . . . . . . . . . . . Intel | -11 -10 -10 -10 -9 -8 -7 -7 -7 -7 -6 -6 -5 -4 -3 -3 ------- Run | Scr Mat Min Exi Min Mat Fac Low Low Dat Pro Fac Fac Fac Res Qua Robot Analysis Total 3 | . 3 . . . . . . . . . . . . . . Derelict Logs Recovered 3 | . . 1 . . . . . . . 2 . . . . . Drone Launches . | . . . . . . . . . . . . . . . . Drone Recoveries . | . . . . . . . . . . . . . . . . Exploration | -11 -10 -10 -10 -9 -8 -7 -7 -7 -7 -6 -6 -5 -4 -3 -3 ------------- Run | Scr Mat Min Exi Min Mat Fac Low Low Dat Pro Fac Fac Fac Res Qua Turns Passed 10235 | 34 651 506 468 68 1497 754 580 560 194 638 864 796 999 1508 118 Spaces Moved 5855 | 32 470 381 389 56 418 464 421 373 111 520 416 485 438 743 138 Core 304 | 4 . . . . . . . . . . . . 48 114 138 Treads 387 | . . . . . . . . . . . . . . 387 . Legs 4347 | . 196 381 389 56 418 464 421 373 111 216 416 485 390 31 . Wheels 817 | 28 274 . . . . . . . . 304 . . . 211 . Hover . | . . . . . . . . . . . . . . . . Flight . | . . . . . . . . . . . . . . . . Fastest Speed 50 | 50 80 120 120 120 120 120 120 122 122 110 126 126 50 50 50 Average Speed 122 | 77 97 120 120 120 120 120 121 122 135 115 126 126 141 143 77 Slowest Speed 850 | 100 190 120 120 120 120 120 122 122 193 140 127 126 850 330 800 Overloaded Moves . | . . . . . . . . . . . . . . . . Propulsion Burnouts . | . . . . . . . . . . . . . . . . Robots Hopped . | . . . . . . . . . . . . . . . . Cave-ins Triggered . | . . . . . . . . . . . . . . . . Exploration Rate (%) 38 | 3 71 86 85 20 28 17 49 44 79 60 12 12 11 18 18 Regions Visited 15 Branch Regions 8 Pre-discovered Areas 3 | . . 2 . . . . . . 1 . . . . . . Known Exits Taken 4 | . 1 . . . . 1 . . . . 1 . 1 . . Unknown Exits Taken 11 | 1 . 1 1 1 1 . 1 1 1 1 . 1 . 1 . Scrap Searched 6 | . . 1 . . . . 2 1 . 2 . . . . . Spaces Dug 26 | . . . . . 8 . . . . . 6 5 . 7 . Terrain Destroyed 335 | . . . . . 8 76 2 43 55 18 17 62 47 7 . Melee 7 | . . . . . . . . . . . . . . 7 . Projectile 31 | . . . . . 8 . 2 3 2 . 8 6 2 . . AOE 297 | . . . . . . 76 . 40 53 18 9 56 45 . . Terrain Rammed . | . . . . . . . . . . . . . . . . Walls Destroyed . | . . . . . . . . . . . . . . . . Machines Disabled . | . . . . . . . . . . . . . . . . Actions | -11 -10 -10 -10 -9 -8 -7 -7 -7 -7 -6 -6 -5 -4 -3 -3 --------- Run | Scr Mat Min Exi Min Mat Fac Low Low Dat Pro Fac Fac Fac Res Qua Total 8356 | 37 582 415 390 57 1342 620 473 450 137 543 688 646 793 1037 146 Wait 1838 | . 26 23 . 2 867 113 28 39 13 2 172 102 317 134 . Move 5840 | 31 469 380 388 55 417 463 420 372 110 519 415 484 437 742 138 Hop . | . . . . . . . . . . . . . . . . Pick Up 75 | . 14 1 1 . 5 7 4 . 1 5 7 6 2 22 . Fast Attach 49 | 6 5 . . . 4 1 3 1 . 3 3 4 1 16 2 Attach 52 | . . . . . 2 7 1 1 5 . 6 2 9 18 1 Detach 16 | . . . . . . 3 2 . 1 . 3 2 . 5 . Swap 65 | . 4 . . . 10 4 3 3 1 5 18 7 . 10 . Drop 57 | . 12 1 1 . 7 1 3 . . 2 9 9 2 9 1 Fire 230 | . 51 9 . . 30 21 9 13 6 7 34 18 12 20 . Melee 57 | . . . . . . . . . . . . . . 56 1 Ram 6 | . 1 . . . . . . . . . . . . 2 3 Kick 28 | . . 1 . . . . . . . . . 11 13 3 . Crush . | . . . . . . . . . . . . . . . . Escape Stasis . | . . . . . . . . . . . . . . . . Rewire 43 | . . . . . . . . 21 . . 21 1 . . . Trap . | . . . . . . . . . . . . . . . . Miscellaneous . | . . . . . . . . . . . . . . . . Route ------- -11/Scrapyard -10/Materials (discovered 3 exits: [*Mat x2] / *Min) -10/Mines (discovered 3 exits: [*Mat x2] / *Exi) -10/Exiles -9/Mines -8/Materials -7/Factory (discovered 2 exits: *Low x2) -7/Lower Caves -7/Lower Caves -7/Data Miner -6/Proximity Caves -6/Factory (discovered 4 exits: *Fac x3 / Ext) -5/Factory -4/Factory (discovered 6 exits: *Res x4 / Upp x2) -3/Research -3/Quarantine History --------- Turn | Location | Event 2 | -11/Scrapyard | Met Revision 17 14 | -11/Scrapyard | Discovered new exit (range 14) 35 | -11/Scrapyard | Entered Materials 272 | -10/Materials | Discovered new exit (range 15) 301 | -10/Materials | Build established: Mutant 388 | -10/Materials | Discovered new exit (range 6) 481 | -10/Materials | Identified exit to Mines 686 | -10/Materials | Entered Mines 691 | -10/Mines | Assembled infested the area 929 | -10/Mines | Learned location of Storage (-9) 960 | -10/Mines | Discovered new exit (range 10) 971 | -10/Mines | Met a Derelict who couldn't figure out how to use a Trap Extractor 1118 | -10/Mines | Discovered new exit (range 16) 1186 | -10/Mines | Deemed a non-threat by the Exiles lab entrance 1186 | -10/Mines | Discovered new exit (range 5) 1192 | -10/Mines | Entered Exiles 1224 | -10/Exiles | Met 8R-AWN 1244 | -10/Exiles | Met EX-HEX 1285 | -10/Exiles | Met EX-BIN 1350 | -10/Exiles | Aligned with FarCom system 1351 | -10/Exiles | Given EX-Vault access code 1378 | -10/Exiles | Opened EX-Vault 1385 | -10/Exiles | Found Prototype Device 1409 | -10/Exiles | Warned to stay clear of 0b10 Research branches 1446 | -10/Exiles | Met EX-DEC 1491 | -10/Exiles | Visited The Gauntlet 1644 | -10/Exiles | Discovered new exit (range 14) 1660 | -10/Exiles | Left Exiles lab with Skeleton Box 1660 | -10/Exiles | Entered Mines 1718 | -9/Mines | Discovered new exit (range 5) 1728 | -9/Mines | Entered Materials 1728 | -8/Materials | Evolved 4 slots: Propulsion x2, Utility x2 2031 | -8/Materials | Build established: Hacker-Skirmisher 2423 | -8/Materials | Identified Skeleton Box 3216 | -8/Materials | Discovered new exit (range 7) 3225 | -8/Materials | Entered Factory 3225 | -7/Factory | Evolved 2 slots: Propulsion x1, Utility x1 3458 | -7/Factory | Build established: Hacker-Mutant 3587 | -7/Factory | Identified exit to Lower Caves 3741 | -7/Factory | Found Prototype Launcher 3741 | -7/Factory | Identified Rocket Array 3753 | -7/Factory | Found Rocket Array 3979 | -7/Factory | Entered Lower Caves 4009 | -7/Lower Caves | Attracted the attention of an 0b10 checkpoint 4549 | -7/Lower Caves | Discovered new exit (range 9) 4559 | -7/Lower Caves | Entered another Lower Caves area 4700 | -7/Lower Caves | Build established: Mutant 4705 | -7/Lower Caves | Attacked by a delusional Derelict stockpiling Unaware 4757 | -7/Lower Caves | Attracted the attention of an 0b10 checkpoint 5095 | -7/Lower Caves | Discovered new exit (range 7) 5119 | -7/Lower Caves | Entered Data Miner 5119 | -7/Data Miner | Accompanied by 3 allies 5119 | -7/Data Miner | Discovered new exit (range 6) 5140 | -7/Data Miner | Met Data Miner 5167 | -7/Data Miner | Learned location of Section 7 (-2) 5178 | -7/Data Miner | Acquired the access code to Warlord's prototype stash 5190 | -7/Data Miner | Received God Mode back door access code from Data Miner 5224 | -7/Data Miner | Data Conduit disabled 5275 | -7/Data Miner | Lost 5 parts (1p2n1u1w) 5313 | -7/Data Miner | Entered Proximity Caves 5565 | -6/Proximity Caves | Build established: Scavenger-Mutant 5781 | -6/Proximity Caves | Learned Factory terminal intel 5811 | -6/Proximity Caves | Learned 8 Factory zone layouts 5908 | -6/Proximity Caves | Discovered new exit (range 12) 5951 | -6/Proximity Caves | Entered Factory 5951 | -6/Factory | Evolved 2 slots: Utility x2 5952 | -6/Factory | Identified exit to Factory 5952 | -6/Factory | Identified exit to Extension 5953 | -6/Factory | Loaded intel: 28 terminal locations 5962 | -6/Factory | Identified exit to DSF 6326 | -6/Factory | Build established: Derelict-Skirmisher 6785 | -6/Factory | Discovered exit to Factory (range 13) 6815 | -6/Factory | Entered another Factory area 6815 | -5/Factory | Accompanied by 1 ally 6815 | -5/Factory | Evolved 2 slots: Utility x2 7234 | -5/Factory | Destroyed 9 combat bots 7313 | -5/Factory | Repaired Magnetic Acceleration Cannon 7504 | -5/Factory | Build established: Mutant 7562 | -5/Factory | Discovered new exit (range 14) 7611 | -5/Factory | Entered another Factory area 7611 | -4/Factory | Evolved 2 slots: Power x1, Utility x1 7616 | -4/Factory | Identified exit to DSF 7905 | -4/Factory | Build established: Scavenger-Mutant 8037 | -4/Factory | Identified exit to Upper Caves 8129 | -4/Factory | Identified exit to Research 8313 | -4/Factory | Spotted B-86 Titan 8404 | -4/Factory | Core integrity fell below 50% 8415 | -4/Factory | Lost 18 parts (2p5n7u4w) 8610 | -4/Factory | Entered Research 8610 | -3/Research | Evolved 2 slots: Weapon x2 8631 | -3/Research | Garrison activated, responded to threat 8995 | -3/Research | Found Enh. Force Lance 8998 | -3/Research | Found Enh. Force Lance 9157 | -3/Research | Found Enh. Force Lance 9387 | -3/Research | Build established: Scavenger-Assassin 9695 | -3/Research | System corruption reached 10% 9779 | -3/Research | Destroyed 12 combat bots 9788 | -3/Research | Lost 11 parts (1p2n7u1w) 9972 | -3/Research | Build established: Scavenger-Mutant 10057 | -3/Research | Released all parts (6) 10087 | -3/Research | Lost 10 parts (2p2n3u3w) 10100 | -3/Research | Core integrity fell below 50% 10114 | -3/Research | Discovered new exit (range 8) 10118 | -3/Research | Entered Quarantine 10119 | -3/Quarantine | Maximum security lockdown engaged 10192 | -3/Quarantine | Core integrity fell below 20% 10202 | -3/Quarantine | Found Alien Artifact 10202 | -3/Quarantine | Identified Phase Armor 10236 | -3/Quarantine | Destroyed by G-73 Enforcer with Heavy Laser Last Messages --------------- 10181_ Slammed into S-43 Plague. 10185_ Kinecellerator destroyed. 10195_ S-43 Plague destroyed. 10196_ System corrupted: Heat flow error (+282). 10197_ Suspension Chamber breached. 10202_ Acquired Alien Artifact. 10202_ Identified Phase Armor. 10204_ S-43 Plague destroyed. 10205_ The unstable cave ceiling collapses. 10210_ O-24 Administrator: "IFF HANDSHAKE FAILED. SECURING TERMINAL." 10212_ The unstable cave ceiling collapses. 10212_ Dropped Phase Armor. 10219_ ALERT: Assault forces dispatched. 10220_ The unstable cave ceiling collapses. 10235_ C-30 ARC bursts open, deploying its payload. 10235_ G-73 Enforcer unfolds itself. 10235_ G-67 Veteran unfolds itself. 10235_ B-74 Champion unfolds itself. 10235_ I-47 Archangel unfolds itself. Map ----- +----------------------------------------------------+ | ???# ##"##### """ #????????????????????????? | | ???# # ## """ [ #????????????????????????? | | ???# # !! ## """ #????????????????????????? | | ???# # !!! ## #????????????????????????? | | ???# # !! """ #????????????????????????? | | ???# #### "" "#????????????????????????? | | ???# #?# "" ""#????????????????????????? | | ???# #?# ""#????????????????????????? | | ???# ### "" ""#????????????????????????? | | ???# T# " ""#????????????????????????? | | ???# ""# [ " T"#?????????h??????????????? | | ???# #?# * ""#?????????h??????????????? | | #### ### ""#??????????h?????????????? | | # ""#????????????????????????? | | # ""#???????????#????????????? | | "#?????????# ???????????? | | #???????? "????????????? | | ##########/# ## ###???????i T????????????? | | #??????# ???????###?gbg ??????????????? | | ######## "" #????????T"# g #???????????????? | | # """w#?????### "# #???????????????? | | # ! " ####### #???????????????? | | # """ / g #???????????????? | | # "" #######s #???????????????? | | #### # #?????# ######???????????????? | | ???? # #?????#@ #????????????????????? | | ??? ###########?????# #????????????????????? | | #??? ??????????????# #????????????????????? | | +???? ?????????????# #????????????????????? | | #???? ?????????????# #????????????????????? | | +????? ???????????????# #????????????????????? | | * #?????????????????????# ????????????????????? | | #?????????????????????# #????????????????????? | | #???????ggg???????????? #????????????????????? | | ###??????????????????????+###????????????????????? | | ?????????????????????????????????????????????????? | | ?????????????????????????????????????????????????? | | ?????????????????????????????????????????????????? | | ?????????????????????????????????????????????????? | | ?????????????????????????????????????????????????? | | | | | | | | | | | | | | | | | | | | | +----------------------------------------------------+ Best States ------------- Heat Dissipation 77 Energy Generation 39 Energy Capacity 335 Matter Stores 300 Matter Capacity 300 Sight Range 18 Terrain Scan Range 16 Terrain Scan Density 85 Jamming Range 12 Armor Coverage 1425 Resistance: KI 20 Resistance: TH 20 Resistance: EX 20 Resistance: EM 20 Resistance: I 20 Resistance: S 20 Resistance: P 20 Propulsion Shielding 33 Evasion (%) 55 Targeting Accuracy 6 Target Analysis 8 Armor Integrity Analysis 30 Recoil Reduction 5 Kinecelleration 40 Salvage Targeting 3 Offensive Hacking 30 Item Schematics ----------------- Machine Analyzer | -8/Materials | Scanalyzed Lrg. Storage Unit | -8/Materials | Scanalyzed Trap Scanner | -7/Factory | Scanalyzed Imp. Ion Engine | -7/Factory | Scanalyzed Transmission Jammer | -7/Factory | Scanalyzed Imp. Terrain Scanner | -7/Factory | Scanalyzed Autogun | -7/Factory | Scanalyzed Combat Drone Bay | -7/Data Miner | Free Lgt. Regenerative Plating | -7/Data Miner | Free Cld. Cesium-ion Thruster | -7/Data Miner | Free Exp. Propulsion Shielding | -7/Data Miner | Free Gui. EMP Blaster | -7/Data Miner | Free Field Propulsion Drive | -7/Data Miner | Free Imp. Coolant Injector | -7/Data Miner | Free Smartbomb Launcher | -7/Data Miner | Free Imp. System Shield | -7/Data Miner | Free Imp. Core Analyzer | -7/Data Miner | Free Hvy. Gauss Cannon | -7/Data Miner | Free Adv. Medium Treads | -7/Data Miner | Free Adv. Signal Interpreter | -6/Factory | Hacked Robot Schematics ------------------ R-10 Processor | -7/Data Miner | Free L-41 Fighter | -7/Data Miner | Free X-62 Marksman | -7/Data Miner | Free O-24 Administrator | -7/Data Miner | Free B-60 Warrior | -7/Data Miner | Free A-15 Conveyor | -7/Data Miner | Free Fabricated ------------ Nothing Alien Tech Used ----------------- Phase Armor Achievements -------------- None Challenges ------------ None Game ------ Seed StormDeliveryJammer Manual? 0 Play Time 03:26:31 Cumulative 148.1 hours Start 2022.01.22 @ 16:53:22 End 2022.01.23 @ 19:23:27 Sessions 14 Manual Loads 0 Difficulty Adventurer Special Mode None Game No. 31 Rogue 0 Adventurer 25 Explorer 6 Win Type - Total 2 Types 1/0/1/0/0/0/0/0/0 Lore% 49 Gallery% 61 Achievement% 44 Wizard Run 0 Options --------- ASCII 0 Keyboard 0 Movement Mouse Keybinds 0 Fullscreen 2 Font 20/Terminus Map View 66x50 Tactical HUD 1 Map Filters NONE Filters NONE Steam 1 RUN: 15efb48d-6612-4a08-8ae2-f97bbf8952eb